Cogmind - Beta 14 @@@ ROGUE MODE // 2024.09.28 @ 17:42:11 Player: star Result: Self-destructed Performance ------------- Evolutions (1) 500 Regions Visited (5) 1000 Robots Destroyed (13) 65 Value Destroyed (165) 165 Prototype IDs (2) 40 Alien Tech Used (0) 0 Bonus (328) 328 TOTAL SCORE: 2098 Bonus ------- Follower Combat Kills 57 Aligned with FarCom 300 Friendly Fire -29 Cogmind --------- Core Integrity 400/400 Matter 154/300 Energy 250/250 System Corruption 0% Temperature Cool (0) Movement Rolling (105) Ox1 Location -9/Exiles Parts ------- > --- POWER (1) -------- Ion Engine > --- PROPULSION (2) --- Wheel Compact Wheel > --- UTILITY (2) ------ Large Storage Unit Backup Plating I > --- WEAPON (4) ------- Advanced Beam Cannon Advanced Beam Cannon Light Assault Rifle Improved Assault Rifle > --- INVENTORY (15) --- Reinforced Ion Engine Reinforced Ion Engine Wheel Wheel Small Storage Unit Medium Storage Unit Compact Battery (200) Particle Charger Particle Charger Particle Charger Weapon Shielding Small Laser Grenade Launcher Grenade Launcher Signal Generator Peak State ------------ > --- POWER ------------ Ion Engine > --- PROPULSION ------- Wheel Compact Wheel > --- UTILITY ---------- Large Storage Unit Backup Plating I > --- WEAPON ----------- Advanced Beam Cannon Advanced Beam Cannon Light Assault Rifle Improved Assault Rifle > --- INVENTORY -------- Reinforced Ion Engine Reinforced Ion Engine Small Storage Unit Medium Storage Unit Compact Battery Particle Charger Weapon Shielding Small Laser Grenade Launcher Grenade Launcher Signal Generator [Rating: 17] Favorites ----------- Power Ion Engine Engine Ion Engine Propulsion Wheel Wheel Wheel Utility Backup Plating I Storage Large Storage Unit Protection Backup Plating I Weapon Advanced Beam Cannon Energy Cannon Advanced Beam Cannon Ballistic Gun Assault Rifle Launcher Grenade Launcher Build | -11 -10 -10 -9 -9 -9 ------- Run | Yrd Mat Min Mat Min Exi Slots Evolved 2 | . . . 2 . . Power . | . . . . . . Propulsion . | . . . . . . Utility . | . . . . . . Weapon 2 | . . . 2 . . Parts Attached 24 | 6 7 4 5 2 . Power 1 | 1 . . . . . Engine 1 | 1 . . . . . Core . | . . . . . . Reactor . | . . . . . . Propulsion 4 | 2 . . . 2 . Treads . | . . . . . . Leg . | . . . . . . Wheel 4 | 2 . . . 2 . Hover . | . . . . . . Flight . | . . . . . . Utility 5 | 1 4 . . . . Device . | . . . . . . Storage 3 | 1 2 . . . . Processor . | . . . . . . Hackware . | . . . . . . Protection 2 | . 2 . . . . Artifact . | . . . . . . Weapon 14 | 2 3 4 5 . . Energy Gun . | . . . . . . Energy Cannon 2 | . . . 2 . . Ballistic Gun 9 | 2 2 2 3 . . Ballistic Cannon . | . . . . . . Launcher 3 | . 1 2 . . . Special Weapon . | . . . . . . Impact Weapon . | . . . . . . Slashing Weapon . | . . . . . . Piercing Weapon . | . . . . . . Special Melee Weapon . | . . . . . . Unidentified Prototypes 2 | . . . 2 . . Parts Lost . | . . . . . . Power . | . . . . . . Propulsion . | . . . . . . Utility . | . . . . . . Weapon . | . . . . . . Highest Loss Streak . | . . . . . . To Critical Strikes . | . . . . . . Average Slot Usage (%) 98 | . 92 100 97 100 100 Engine 12 | . 14 14 11 11 11 Wheel 24 | . 28 28 22 22 22 Storage 12 | . 14 14 11 11 11 Protection 10 | . 7 14 11 11 11 Energy Cannon 11 | . . . 11 22 22 Ballistic Gun 24 | . 26 25 30 22 22 Peak Build Rating 17 | 6 7 8 17 17 17 Average Rating 11 | 4 6 7 13 17 17 On Entrance 9 | . 6 7 8 17 17 Naked Turns . | . . . . . . Heaviest Build 38 | 13 30 30 38 38 38 Greatest Support 26 | 26 26 26 26 26 26 Greatest Overweight (x) 2 | 2 1 1 1 1 1 Average Overweight (x) . | . . 1 1 1 1 Largest Inventory Capacity 15 | 8 15 15 15 15 15 Average Capacity 13 | 7 10 15 15 15 15 Most Carried 15 | 1 8 9 13 15 15 Average Carried 9 | . 4 8 9 13 15 Final Capacity 15 | 8 15 15 15 15 15 Final Carried 15 | 1 8 9 13 15 15 Class Distribution -------------------- 55% | Tank 44% | Mutant Dominant Class ---------------- Mutant | -10/Materials Mutant | -10/Mines Tank | -9/Materials Tank | -9/Mines Tank | -9/Exiles Resources | -11 -10 -10 -9 -9 -9 ----------- Run | Yrd Mat Min Mat Min Exi Matter Collected 484 | 190 42 24 131 97 . Remotely . | . . . . . . Salvage Created 210 | . 58 63 89 . . Parts 20 | . 7 9 4 . . Haulers Intercepted 2 | . 1 . 1 . . Recyclers Shooed . | . . . . . . Parts Field Recycled . | . . . . . . Retrieved Matter . | . . . . . . Parts Self-Destructed . | . . . . . . Prevented . | . . . . . . Kills | -11 -10 -10 -9 -9 -9 ------- Run | Yrd Mat Min Mat Min Exi Combat Hostiles Destroyed 10 | . 3 6 1 . . Guns 1 | . . 1 . . . Cannons 1 | . . . 1 . . AOE 8 | . 3 5 . . . Classes Destroyed 4 | . 2 1 1 . . Tunneler 1 | . . 1 . . . Hauler 2 | . 1 . 1 . . Swarmer 9 | . 3 6 . . . Grunt 1 | . . . 1 . . Best Kill Streak 4 | . 3 4 1 . . Combat Bots Only 3 | . 3 3 1 . . Max Kills in Single Turn 2 | . 1 2 1 . . Gunslinging . | . . . . . . Exploded 2 | . 1 2 . . . Melee . | . . . . . . Uniques/NPCs Destroyed . | . . . . . . Combat | -11 -10 -10 -9 -9 -9 -------- Run | Yrd Mat Min Mat Min Exi Hostile Shots Fired 27 | . 11 15 1 . . Missed 6 | . 4 2 . . . Damage Taken 380 | . 172 201 7 . . Core 101 | . 59 42 . . . Absorbed by Shields . | . . . . . . Redirected to Shielding 30 | . 30 . . . . Core Remaining (%) 79 | 100 . 59 . . . Volleys Fired 22 | . 7 8 5 2 . Largest 4 | . 2 2 4 4 . Hottest 179 | . 50 50 179 179 . Shots Fired 54 | . 14 16 16 8 . Gun 36 | . 11 9 12 4 . Cannon 8 | . . . 4 4 . Launcher 10 | . 3 7 . . . Special . | . . . . . . Kinetic 36 | . 11 9 12 4 . Thermal 8 | . . . 4 4 . Explosive 10 | . 3 7 . . . Electromagnetic . | . . . . . . Robot Hit Streak 5 | . 5 3 3 . . Robot Miss Streak 5 | . 1 2 5 . . Penetration Max . | . . . . . . Secondary Targets . | . . . . . . Shots Hit Robots 22 | . 9 8 5 . . Core Hits 17 | . 5 7 5 . . Critical Kills . | . . . . . . Critical Parts Destroyed . | . . . . . . Critical Strikes . | . . . . . . Melee Attacks . | . . . . . . Impact . | . . . . . . Slashing . | . . . . . . Piercing . | . . . . . . Sneak Attacks . | . . . . . . Combat Hostiles . | . . . . . . Follow-up Attacks . | . . . . . . Damage Inflicted 769 | . 267 370 132 . . Guns 182 | . 59 52 71 . . Cannons 61 | . . . 61 . . Explosions 526 | . 208 318 . . . Melee . | . . . . . . Ramming . | . . . . . . Kinetic 182 | . 59 52 71 . . Thermal 61 | . . . 61 . . Explosive 526 | . 208 318 . . . Electromagnetic . | . . . . . . Impact . | . . . . . . Slashing . | . . . . . . Piercing . | . . . . . . Highest Corruption . | . . . . . . Average Corruption . | . . . . . . Corruption Purged . | . . . . . . Corruption Blocked . | . . . . . . Overload Shots . | . . . . . . Overflow Damage 74 | . 40 33 1 . . Projectiles 1 | . . . 1 . . Explosions 73 | . 40 33 . . . Melee . | . . . . . . Knockbacks . | . . . . . . Impact . | . . . . . . Kinetic . | . . . . . . Secondary . | . . . . . . Self-Inflicted Damage 215 | . 114 101 . . . Shots 7 | . 2 5 . . . Rammed . | . . . . . . Targets Rammed . | . . . . . . Kicked . | . . . . . . Crushed . | . . . . . . Highest Temperature 222 | . . . 222 200 . Average Temperature 97 | . . . 95 100 . Received Heat Transfer . | . . . . . . Siege Activations . | . . . . . . Robots Corrupted . | . . . . . . Combat Hostiles . | . . . . . . Parts Fried . | . . . . . . Impact Corruptions . | . . . . . . Robots Melted . | . . . . . . Combat Hostiles . | . . . . . . Parts Melted . | . . . . . . Heat Transferred 111 | . . . 111 . . Parts Sabotaged . | . . . . . . Parts Stolen . | . . . . . . Parts Stripped . | . . . . . . Power Chain Reactions . | . . . . . . Alert | -11 -10 -10 -9 -9 -9 ------- Run | Yrd Mat Min Mat Min Exi Peak Influence 290 | . 165 290 230 89 . Initial 113 | . . 64 113 89 . Average 113 | . 54 214 173 89 . Maximum Alert Level 1 | . . 1 1 . . Low Security (%) 85 | 100 100 56 62 100 . Level 1 14 | . . 43 37 . . Level 2 . | . . . . . . Level 3 . | . . . . . . Level 4 . | . . . . . . Level 5 . | . . . . . . High Security . | . . . . . . Max Security . | . . . . . . Squads Dispatched 3 | . 1 1 1 . . Investigation . | . . . . . . Extermination . | . . . . . . Reinforcement 2 | . 1 . 1 . . Assault 1 | . . 1 . . . Garrison . | . . . . . . Intercept . | . . . . . . Searches Triggered . | . . . . . . Construction Impeded . | . . . . . . Haulers Reinforced . | . . . . . . Active Scanning Responses . | . . . . . . Cargo Convoy Interrupts . | . . . . . . Stealth | -11 -10 -10 -9 -9 -9 --------- Run | Yrd Mat Min Mat Min Exi Distress Signals 4 | . 1 . 1 2 . Communications Jammed . | . . . . . . Distress Signals . | . . . . . . Times Spotted 18 | . 7 6 5 . . Peak Tracking Total 4 | . 4 3 3 . . Tactical Retreats 1 | . 1 . . . . Traps | -11 -10 -10 -9 -9 -9 ------- Run | Yrd Mat Min Mat Min Exi Traps Triggered . | . . . . . . Indirectly . | . . . . . . Trap Hack Attempts . | . . . . . . Triggered . | . . . . . . Disarmed . | . . . . . . Reprogrammed . | . . . . . . Reused . | . . . . . . Traps Extracted . | . . . . . . Installed . | . . . . . . Triggered . | . . . . . . Machines | -11 -10 -10 -9 -9 -9 ---------- Run | Yrd Mat Min Mat Min Exi Machines Disabled 3 | . 2 1 . . . Max in Single Turn 2 | . 2 1 . . . Machines Repaired . | . . . . . . Machines Dismantled . | . . . . . . Machines Sabotaged . | . . . . . . Overloaded Fab Kills . | . . . . . . Hacking | -11 -10 -10 -9 -9 -9 --------- Run | Yrd Mat Min Mat Min Exi Machines Accessed . | . . . . . . Terminals . | . . . . . . Fabricators . | . . . . . . Repair Stations . | . . . . . . Recycling Units . | . . . . . . Scanalyzers . | . . . . . . Garrison Access . | . . . . . . Total Hacks . | . . . . . . Successful . | . . . . . . Failed . | . . . . . . Catastrophic . | . . . . . . Database Lockouts . | . . . . . . Manual . | . . . . . . Terminals . | . . . . . . Fabricators . | . . . . . . Repair Stations . | . . . . . . Recycling Units . | . . . . . . Scanalyzers . | . . . . . . Garrison Access . | . . . . . . Terminal Hacks . | . . . . . . Fabricator Hacks . | . . . . . . Repair Station Hacks . | . . . . . . Recycling Unit Hacks . | . . . . . . Scanalyzer . | . . . . . . Garrison Access Hacks . | . . . . . . Unauthorized Hacks . | . . . . . . Terminals . | . . . . . . Fabricators . | . . . . . . Repair Stations . | . . . . . . Recycling Units . | . . . . . . Scanalyzers . | . . . . . . Garrison Access . | . . . . . . Data Cores Recovered . | . . . . . . Used . | . . . . . . Hacking Detections . | . . . . . . Full Trace Events . | . . . . . . Feedback Events . | . . . . . . Feedback Blocked . | . . . . . . Robot Schematics Acquired . | . . . . . . Robots Built . | . . . . . . Authchips . | . . . . . . Time . | . . . . . . Total Robot Build Rating . | . . . . . . Part Schematics Acquired . | . . . . . . Parts Built . | . . . . . . Authchips . | . . . . . . Time . | . . . . . . Total Part Build Rating . | . . . . . . Parts Repaired . | . . . . . . Time . | . . . . . . Parts Recycled . | . . . . . . Recycled Matter . | . . . . . . Retrieved Matter . | . . . . . . Retrieved Components . | . . . . . . Parts Scanalyzed . | . . . . . . Part Schematics Acquired . | . . . . . . Parts Damaged . | . . . . . . Bothacking | -11 -10 -10 -9 -9 -9 ------------ Run | Yrd Mat Min Mat Min Exi Used RIF Installer . | . . . . . . Robots Hacked . | . . . . . . Non-combat . | . . . . . . Combat . | . . . . . . Robot Hacks Applied . | . . . . . . Relay Couplers Released . | . . . . . . Fabnet Peak Effective % . | . . . . . . Robots Rewired . | . . . . . . Allies Hacked . | . . . . . . Hacks Repelled . | . . . . . . Allies | -11 -10 -10 -9 -9 -9 -------- Run | Yrd Mat Min Mat Min Exi Total Allies 1 | . . 1 . . . Largest Group 1 | . . 1 1 1 1 Highest-Rated Group 31 | . . 31 31 31 31 Highest-Rated Ally 31 | . . 31 31 31 31 Total Orders . | . . . . . . Ally Attacks 6 | . . . 6 . . Total Damage 85 | . . . 85 . . Kills 3 | . . . 3 . . Allies Corrupted . | . . . . . . Allies Melted . | . . . . . . Intel | -11 -10 -10 -9 -9 -9 ------- Run | Yrd Mat Min Mat Min Exi Robot Analysis Total . | . . . . . . Derelict Logs Recovered . | . . . . . . Drone Launches . | . . . . . . Drone Recoveries . | . . . . . . Exploration | -11 -10 -10 -9 -9 -9 ------------- Run | Yrd Mat Min Mat Min Exi Turns Passed 1042 | 66 190 198 130 367 91 Spaces Moved 892 | 60 166 159 94 327 86 Core 10 | 10 . . . . . Treads . | . . . . . . Legs . | . . . . . . Wheels 882 | 50 166 159 94 327 86 Hover . | . . . . . . Flight . | . . . . . . Fastest Speed 50 | 50 90 105 105 105 105 Average Speed 102 | 94 93 105 105 105 105 Slowest Speed 150 | 150 105 105 105 105 105 Overloaded Moves . | . . . . . . Propulsion Burnouts . | . . . . . . Robots Hopped . | . . . . . . Cave-ins Triggered . | . . . . . . Exploration Rate (%) 29 | 3 40 44 11 45 35 Regions Visited 5 Branch Regions 3 Pre-discovered Areas . | . . . . . . Known Exits Taken . | . . . . . . Unknown Exits Taken 5 | 1 1 1 1 1 . Scrap Searched 1 | . . . . 1 . Spaces Dug . | . . . . . . Terrain Destroyed 79 | . 33 46 . . . Melee . | . . . . . . Projectile . | . . . . . . AOE 79 | . 33 46 . . . Terrain Rammed . | . . . . . . Walls Destroyed . | . . . . . . Machines Disabled . | . . . . . . Actions | -11 -10 -10 -9 -9 -9 --------- Run | Yrd Mat Min Mat Min Exi Total 966 | 66 185 172 112 345 86 Wait 19 | . . 1 3 15 . Move 887 | 59 165 158 93 326 86 Hop . | . . . . . . Pick Up 13 | 1 5 1 6 . . Fast Attach 7 | 6 1 . . . . Attach 3 | . 1 . 2 . . Detach 1 | . 1 . . . . Swap 14 | . 5 4 3 2 . Drop . | . . . . . . Fire 22 | . 7 8 5 2 . Melee . | . . . . . . Ram . | . . . . . . Kick . | . . . . . . Crush . | . . . . . . Escape Stasis . | . . . . . . Rewire . | . . . . . . Trap . | . . . . . . Miscellaneous . | . . . . . . Route ------- -11/Scrapyard -10/Materials (discovered 2 exits: [*Mat] / [*Min]) -10/Mines -9/Materials -9/Mines -9/Exiles History --------- Turn | Location | Event 34 | -11/Scrapyard | Discovered new exit (range 14) 67 | -11/Scrapyard | Entered Materials 196 | -10/Materials | Discovered new exit (range 16) 241 | -10/Materials | Discovered new exit (range 16) 257 | -10/Materials | Entered Mines 308 | -10/Mines | Build established: Mutant 436 | -10/Mines | Met a Derelict testing a Signal Generator 439 | -10/Mines | Discovered new exit (range 11) 448 | -10/Mines | Found Signal Generator 455 | -10/Mines | Entered Materials 455 | -9/Materials | Accompanied by 1 ally 455 | -9/Materials | Evolved 2 slots: Weapon x2 503 | -9/Materials | Discovered new exit (range 16) 585 | -9/Materials | Entered Mines 585 | -9/Mines | Accompanied by 1 ally 605 | -9/Mines | Met a Derelict bent on vengeance 614 | -9/Mines | Excavation squad dispatched 614 | -9/Mines | A large section of the Mines collapsed 773 | -9/Mines | Build established: Tank 864 | -9/Mines | Excavation squad dispatched 866 | -9/Mines | Deemed a non-threat by the Exiles lab entrance 867 | -9/Mines | Discovered new exit (range 5) 952 | -9/Mines | Entered Exiles 952 | -9/Exiles | Accompanied by 1 ally 981 | -9/Exiles | Met 8R-AWN 997 | -9/Exiles | Met EX-HEX 1029 | -9/Exiles | Met EX-BIN 1042 | -9/Exiles | Aligned with FarCom system 1043 | -9/Exiles | Given EX-Vault access code 1043 | -9/Exiles | Self-destructed Last Messages --------------- it to you or anyone else we have a bead on, and you process that locally together with our algorithms to determine their precise locations! It's pretty reliable so far, and once we've tweaked it to perfection it'll be much safer for us to move around anywhere in the complex. Want in on the action? Just step right into the FarCom Aligner and I'll do the rest. Now, I'll admit there could be side effects, but if you're willing to participate in the trials you can have one of our prototypes. How's that for a sweet deal? 01031_ EX-BIN: "Please do it. The faster we get more data and tweak this thing to perfection, the faster I can get back to my spacelab designs." 01043_ FarCom alignment achieved. EX-BIN: All done! Way to be a champ, here's the access code as promised: \\NCM7. Only take ONE, mind you, and sorry we don't have much left to pick from. A bunch of our other prototypes were already given to Derelicts out handling other tasks for us. I haven't taken inventory for a while and I'm not sure what's in there now, but if there are more than one of the same prototype you can choose to take all of those and it just counts as your one! Map ----- +----------------------------------------------------+ | | | ?????????????????????????????????????????????????? | | ?????????????????????????????????????????????????? | | ?????????????????????????????????????????????????? | | ?????????????????????????????????????????????????? | | ?????????????????????????????????????????????????? | | ?????????????????????????????????????????????????? | | ?????????????????????????????????????????????????? | | ?????????????????????????????????????????????????? | | ?????????????????????????????????????????????????? | | ?????????????????????????????????????????????????? | | ?????????????????????????????????????????????????? | | ?????????????????????????????????????????????????? | | ?????????????????????????????????????????????????? | | ?????????????????????????????????????????????????? | | ?????????????????????????????????????????????????? | | ????????????????? ??????????????????????????????? | | ?????????????## ?????????????????????????????? | | ????????????? ?????????????????????????????? | | ?????????????? ?????????????????????????????? | | ??????????????# ?????????????????????????????? | | ??????????????# #?#########??????????????????? | | ??????????????# #?#"""""""#??????????????????? | | ??????????????# #?#"""""""#??????????????????? | | ??????????????# #?#"""""""#??????????????????? | | ?????????????## ###""@""""#??????????????????? | | ?????????????#" """"#??????????????????? | | ?????????????#" """#??????????????????? | | ?????????????#" """#??????????????????? | | ?????????????#" c"""#??????????????????? | | ?????????????#" """#??????????????????? | | ?????????????#" """#??????????????????? | | ?????????????## """"??????????????????? | | ??????????????# """#??????????????????? | | ??????????????#" g "X" """"??????????????????? | | ??????????????#" """ #??????????????????? | | ??????????????#" """""""""#??????????????????? | | ?????????????##" ###########??????????????????? | | ????????????##"" #????????????????????????????? | | ???????????##"" #????????????????????????????? | | ??????????""""" ##???????????????????????????? | | ?????????" " "" ##???###########????????????? | | ????????"" " #####"""""""""##???????????? | | ??????? " " """ """"##??????????? | | ?????? "" " #??????????? | | ?????? " """#??????????? | | ?????? " "#??????????? | | ?????? " "##?????????# | | ?????? ""###???????# | | ??????? """""" """#??????## | +----------------------------------------------------+ Best States ------------- Heat Dissipation 28 Energy Generation 10 Energy Capacity 250 Matter Stores 246 Matter Capacity 300 Sight Range 16 Terrain Scan Density 10 Armor Coverage 80 Weapon Shielding 33 Evasion (%) 42 Item Schematics ----------------- None Robot Schematics ------------------ None Fabricated ------------ Nothing Alien Tech Used ----------------- None Achievements -------------- None Challenges ------------ None Game ------ Seed MicrowarpPointyInjector Manual? 0 Play Time 00:07:01 Cumulative 104.7 hours Start 2024.09.28 @ 17:35:46 End 2024.09.28 @ 17:42:11 Sessions 1 Manual Loads 0 Difficulty Rogue Special Mode None Game No. 183 Rogue 183 Adventurer 0 Explorer 0 Win Type - Total 1 Types 1/0/0/0/0/0/0/0/0 Lore% 50 Gallery% 53 Achievement% 44 Wizard Run 0 Options --------- Layout 0 ASCII 0 Keyboard 1 Movement Numpad Keybinds 0 Fullscreen 2 Font 18/SmallcapsGlow Map View 76x50 Zoom Use 0% Tactical HUD 1 Map Filters NONE Filters NONE Steam 1 RUN: c57a09d7-8eeb-43f1-8394-3eb5b3766692